[Event "E Women's Grand Prix | Fourth Leg 2022/23"]
[Site "Chess.com"]
[Date "2023.05.20"]
[Round "5"]
[White "Kiolbasa, Oliwia"]
[Black "Harika, Dronavalli"]
[Result "0-1"]
[WhiteElo "2422"]
[BlackElo "2501"]
[ECO "C78"]
[EventDate "2023.??.??"]
[Annotator "rafael"]
[PlyCount "90"]
[Beauty "7285606711325"]
[EventType "swiss"]
[EventRounds "11"]
[EventCountry "FID"]
[TimeControl "5400+30"]

1.e4 e5 2.Nf3 Nc6 3.Bb5 a6 4.Ba4 Nf6 5.O-O Bc5 {A tricky move order in the Arkhangelsk Variation. I remember this was recommended to me by my friend GM Ivan Morovic in 2001, but I was too lazy to study it and I was happy playing the Sicilian.} 6.c3 b5 7.Bb3 ( 7.Bc2 {is the alternative and in this case Black usually plays} 7...d5 ) 7...d6 8.d4 Bb6 9.h3 ( 9.a4 {White normally plays a4 in this line and the idea of the earlier …Bc5 is that now, instead of 9...Rb8 transposing to the normal positions of the Arkhangelsk, Black can play 9...Bg4. Whether this is so good, I don't know.} 9...Bg4 ) 9...Bb7 10.Re1 h6 $5 {[%c_effect h6;square;h6;type;Interesting;persistent;true] An interesting move to avoid the annoying pin with Bg5.} ( 10...O-O 11.Bg5 {with a complicated position that has been tested many times.} ) 11.Be3 O-O 12.Nbd2 Re8 ( 12...exd4 13.cxd4 Nb4 {This has been tried by Black in many games, but it's bad after} 14.Qe2 $1 {[%c_effect e2;square;e2;type;GreatFind;persistent;true]} 14...Nxe4 15.Nxe4 Bxe4 16.Bd2 Bxf3 17.Qxf3 c5 18.Qg3 {with a very strong attack. The pair of bishops is ready to point at Black's lonely king. This was played in Azarov-Kolesnik, Minsk 2010.} ) 13.d5 Ne7 ( 13...Bxe3 $2 {[%c_effect e3;square;e3;type;Mistake;persistent;true] loses a piece after} 14.dxc6 Bxd2 15.cxb7 ) 14.Bxb6 cxb6 15.Nh4 $6 {[%c_effect h4;square;h4;type;Inaccuracy;persistent;true] This is a superficial move. I think that, in general, the absence of the move a2-a4 was the reason for White's downfall in this game.} ( 15.a4 $1 {[%c_effect a4;square;a4;type;GreatFind;persistent;true] is the best way to fight for an advantage.} 15...bxa4 16.Bxa4 b5 17.Bc2 Ng6 18.Bd3 {with a slight advantage for White in Vitiugov-Firouzja, Wijk aan Zee 2020. White is ready to attack Black's queenside with b4 followed by c4.} ) ( 15.Nf1 {is also playable.} ) 15...Bc8 ( 15...g5 {Even this move is interesting for Black.} 16.Nf5 Nxf5 17.exf5 Rc8 18.Ne4 Nxe4 19.Rxe4 Qf6 20.Qf3 Rc5 21.Rd1 Bc8 22.g4 Bd7 {and the game later ended in a draw. Vachier Lagrave-Bachmann, Wch Rapid Berlin 2015.} ) 16.Nf1 Ng6 $1 {[%c_effect g6;square;g6;type;GreatFind;persistent;true] A new move. It reminds me of the famous Ng6 from the fifth game of the Spassky-Fischer 1972 match.} ( 16...Bd7 {was played in Vokhidov-Kairbekove, (rapid) 2022.} ) ( 16...g5 {is also good:} 17.Nf3 Ng6 {with counterplay.} ) 17.Nxg6 {Considering how easy Black's position is to play after this move, maybe it's worth considering the sad retreat of the knight, although this is an admission of failure.} ( 17.Nf3 ) 17...fxg6 18.Ng3 Rf8 {The best thing in chess happens when you have a clear plan and just know what to do if your opponent sits and waits. Dronavalli is ready to play Nh7-Ra7-Raf7-Ng5 and then sacrifice something on the kingside. White desperately needs to create some play and trying to open the queenside with a quick c4 or a4 is the only hope. In the game the advantage soon becomes winning.} 19.Qd2 Nh7 20.Qe3 Ra7 $1 {[%c_effect a7;square;a7;type;GreatFind;persistent;true]} 21.Nf1 ( 21.Nh1 {My computer suggests this move to protect f2. It's ugly, but sometimes pretty moves are not enough to save the game.} ) 21...Raf7 22.Nd2 {The position is so bad that White offers the f2-pawn in order to get some defensive chances.} ( 22.Re2 Ng5 ) 22...Ng5 ( 22...Rxf2 {This is also very good.} 23.Rf1 ( 23.Qxf2 Rxf2 24.Kxf2 Qh4+ {Black's pieces are too active and the position is easily winning.} ) 23...R2f4 {with a sound pawn advantage.} ) 23.Bd1 Rf4 ( 23...Rxf2 $1 {[%c_effect f2;square;f2;type;GreatFind;persistent;true] Now this is even better than in the previous move.} 24.Qxf2 Rxf2 25.Kxf2 Bxh3 $1 {[%c_effect h3;square;h3;type;GreatFind;persistent;true] The most accurate.} 26.gxh3 Nxh3+ 27.Ke3 Qh4 28.Rf1 g5 {The advance of the g-pawn, combined with the attack of queen and knight, gives Black a decisive advantage.} ) 24.Rf1 Bd7 {This doesn't spoil anything, but it is a bit slow. The position screams for a sacrifice.} ( 24...Bxh3 $1 {[%c_effect h3;square;h3;type;GreatFind;persistent;true] is the best.} 25.gxh3 Qd7 {Black's attack is winning:} 26.Bg4 ( 26.Qg3 Nxh3+ 27.Kg2 Rxf2+ 28.Rxf2 Rxf2+ 29.Qxf2 Nxf2 30.Kxf2 Qh3 {followed by the advance of the g-pawn.} ) ( 26.Kg2 Rf3 $1 {[%c_effect f3;square;f3;type;GreatFind;persistent;true] This tactical theme is known as \"interference.\" The h3-pawn falls.} ) 26...Rxg4+ 27.hxg4 Rf3 $1 {[%c_effect f3;square;f3;type;GreatFind;persistent;true]} 28.Nxf3 Qxg4+ 29.Kh1 Nxf3 {with a decisive advantage.} ) 25.a4 {The counterplay comes too late.} 25...bxa4 26.c4 ( 26.Bxa4 {It's clear that both sacrifices on h3 should win for Black. The best road is} 26...Nxh3+ $1 {[%c_effect h3;square;h3;type;GreatFind;persistent;true]} 27.gxh3 Bxh3 $1 {[%c_effect h3;square;h3;type;GreatFind;persistent;true]} 28.Qxh3 Qg5+ 29.Qg3 Rg4 {with a winning position as the knight on d2 is also hanging.} ) 26...b5 27.cxb5 axb5 {Apart from the attack, Dronavalli now is a pawn up.} 28.b3 axb3 ( 28...Nxh3+ 29.gxh3 Rh4 {gives Black a decisive attack.} ) 29.Rb1 Rh4 30.Rxb3 Rff4 {Maybe not the most accurate, but the position is still easily winning.} ( 30...Nxh3+ $1 {[%c_effect h3;square;h3;type;GreatFind;persistent;true] is the simplest.} 31.gxh3 Rxh3 32.Nf3 ( 32.f3 Qh4 $19 ) ( 32.Bf3 Qh4 $19 ) ( 32.Qxh3 Bxh3 33.Rxh3 Qg5+ {and the knight is lost.} ) 32...Bg4 33.Kg2 Rhxf3 34.Bxf3 Bxf3+ 35.Qxf3 Rxf3 36.Rxf3 Qc8 {with an easy win in this position with queen and three pawns against two rooks.} ) 31.g3 Rxe4 32.Nxe4 Rxe4 33.Qd2 Nxh3+ 34.Kg2 Ng5 {Black has three pawns and an attack for the exchange.} 35.Re1 Rc4 36.Be2 Rd4 37.Rd3 Ra4 38.Bd1 Rc4 39.Bb3 Rc5 40.Qe3 Qc8 {Dronavally plays good moves and has no trouble converting the advantage.} 41.f3 Bf5 42.Rdd1 Bc2 $1 {[%c_effect c2;square;c2;type;GreatFind;persistent;true]} ( 42...Rc3 {also wins using the same idea:} 43.Rc1 Bc2 $1 {[%c_effect c2;square;c2;type;GreatFind;persistent;true]} 44.Rxc2 Qh3+ $1 {[%c_effect h3;square;h3;type;GreatFind;persistent;true]} ) 43.Bxc2 Qh3+ 44.Kg1 Qxg3+ 45.Kf1 Qh3+ ( 45...Qh3+ 46.Kg1 Rxc2 ) 0-1

[Event "E Women's Grand Prix | Fourth Leg 2022/23"]
[Site "Chess.com"]
[Date "2023.05.23"]
[Round "7"]
[White "Kosteniuk, Alexandra"]
[Black "Assaubayeva, Bibissara"]
[Result "0-1"]
[WhiteElo "2535"]
[BlackElo "2464"]
[ECO "B31"]
[EventDate "2023.??.??"]
[Annotator "rafael"]
[PlyCount "74"]
[Beauty "7837912669212"]
[EventType "swiss"]
[EventRounds "11"]
[EventCountry "FID"]
[TimeControl "5400+30"]

1.e4 c5 2.Nf3 Nc6 3.Bb5 g6 4.O-O Bg7 5.c3 e5 6.d4 cxd4 7.cxd4 exd4 8.Na3 $6 {[%c_effect a3;square;a3;type;Inaccuracy;persistent;true]} ( 8.Bf4 $1 {[%c_effect f4;square;f4;type;GreatFind;persistent;true] is considered the best move, with the idea of placing the bishop on d6 quickly. Kosteniuk probably got her preparation confused and will get a difficult position in a few moves.} ) 8...Nge7 9.Bf4 a6 ( 9...O-O 10.Bd6 {Transposes to a known position.} ) ( 9...d5 {is also possible. White has to prove the compensation for the pawn after} 10.exd5 Qxd5 11.Bc4 Qf5 ) 10.Bc4 $2 {[%c_effect c4;square;c4;type;Mistake;persistent;true]} ( 10.Bd6 $1 {[%c_effect d6;square;d6;type;GreatFind;persistent;true] This surprising piece sacrifice forces a transposition to the main lines, as capturing the bishop on b5 is too dangerous.} 10...O-O ( 10...axb5 $2 {[%c_effect b5;square;b5;type;Mistake;persistent;true]} 11.Nxb5 Ra5 ( 11...O-O $2 {[%c_effect g8;square;g8;type;Mistake;persistent;true]} 12.Bc7 Qe8 13.Nd6 {traps the queen.} ) 12.a4 $1 {[%c_effect a4;square;a4;type;GreatFind;persistent;true]} ( 12.Bc7 Rxb5 13.Bxd8 Nxd8 {Black gets three pieces for the queen.} ) 12...Qb6 13.Qd3 O-O 14.b4 Ra8 15.Rfc1 {The computer is very happy with White's position, despite being a whole piece down for the moment. Black's pieces can barely move.} ) 11.Bc4 b5 12.Bb3 {Transposing to a position that is known by theory.} ) 10...d6 ( 10...d5 $1 {[%c_effect d5;square;d5;type;GreatFind;persistent;true] is even better. White doesn't have enough compensation for the pawn after} 11.exd5 Nxd5 ) 11.Ng5 $2 {[%c_effect g5;square;g5;type;Mistake;persistent;true] This premature attack is going to be refuted. It's better to try to capture one of the pawns on the d-file.} ( 11.Nc2 O-O 12.Ncxd4 Nxd4 13.Nxd4 d5 14.exd5 Nxd5 {Material is equal, but Black will get the bishop pair and is clearly better.} ) ( 11.Bb3 {is the best chance:} 11...O-O 12.Nc4 ( 12.Nc2 Bg4 {with the advantage.} ) 12...d5 13.Nd6 Be6 14.Nxb7 Qb6 15.Nd6 {with a slight advantage for Black.} ) 11...O-O 12.Qb3 {The f7-pawn is attacked, but Assaubayeva finds a good defense.} 12...d5 $1 {[%c_effect d5;square;d5;type;GreatFind;persistent;true]} 13.Bxd5 Nxd5 14.exd5 Ne7 ( 14...Na5 15.Qf3 b5 {is also better for Black.} ) 15.d6 {It's crazy to think that all this has been played before. I doubt any of the players knew about it, judging by the time they spent to get here.} 15...Nf5 ( 15...Nc6 {is less accurate, although Black was also better after} 16.Rfe1 Qf6 {in Paksa-Mann, Hungary 1998.} ) 16.Qd5 $6 {[%c_effect d5;square;d5;type;Inaccuracy;persistent;true]} ( 16.Ne4 {is better, but Wwhite's position remains difficult after} 16...h6 {avoiding Bf4-g5. Black has the bishop pair, White's knights are not well placed, and the d6-pawn will probably fall sooner or later.} ) 16...h6 17.Ne4 g5 $1 {[%c_effect g5;square;g5;type;GreatFind;persistent;true]} 18.Bd2 Rb8 {The best practical choice, as the d6-pawn is lost.} ( 18...Be6 {is also very good:} 19.Qxb7 Nxd6 20.Nxd6 Qxd6 {Black has so many positional trumps that it's safe to say that the position is winning. The tactical justification is} 21.Bb4 Qb8 $1 {[%c_effect b8;square;b8;type;GreatFind;persistent;true]} ) 19.Rfe1 Be6 20.Qa5 ( 20.Qc5 {doesn't change the evaluation.} 20...b6 21.Qc6 d3 {opening the diagonal for the bishop and preparing a knight jump to d4.} ) 20...Nxd6 21.Nxd6 Qxd6 {Black has the bishop pair and is a pawn up. To makes thing worse, it's a passed and well-protected pawn. White is lost, and Assaubayeva wins confidently.} 22.h4 g4 23.Bb4 Qd8 $1 {[%c_effect d8;square;d8;type;GreatFind;persistent;true]} 24.Qh5 Re8 25.Nc2 Rc8 26.Rec1 Qf6 27.Ne1 Rcd8 28.Qa5 Qxh4 29.Rc5 g3 30.fxg3 Qxg3 31.Nf3 d3 32.Be1 Qd6 33.Rh5 Bg4 34.Rh2 b6 35.Qa4 Bxf3 36.gxf3 Rxe1+ $1 {[%c_effect e1;square;e1;type;GreatFind;persistent;true] A nice final combination.} 37.Rxe1 Qg3+ 0-1

[Event "E Women's Grand Prix | Fourth Leg 2022/23"]
[Site "Chess.com"]
[Date "2023.05.24"]
[Round "8"]
[White "Assaubayeva, Bibissara"]
[Black "Khotenashvili, Bela"]
[Result "1-0"]
[WhiteElo "2464"]
[BlackElo "2478"]
[ECO "D87"]
[EventDate "2023.??.??"]
[Annotator "rafael"]
[PlyCount "83"]
[Beauty "7561826799675"]
[EventType "swiss"]
[EventRounds "11"]
[EventCountry "FID"]
[TimeControl "5400+30"]

1.d4 Nf6 2.c4 g6 3.Nc3 d5 4.cxd5 Nxd5 5.e4 Nxc3 6.bxc3 Bg7 7.Bc4 c5 8.Ne2 O-O 9.O-O Qc7 {A rare and dubious move.} ( 9...Nc6 10.Be3 b6 {Nowadays this is the main line.} ( 10...Bg4 {When I was a kid, almost everyone played this move.} ) ) 10.Bf4 $1 {[%c_effect f4;square;f4;type;GreatFind;persistent;true] This is the problem. Since 10...e5 is not good for Black, the move 10...Qc7 doesn't make much sense.} 10...Qa5 ( 10...e5 $6 {[%c_effect e5;square;e5;type;Inaccuracy;persistent;true]} 11.dxe5 Bxe5 12.Bxe5 Qxe5 13.Bd5 Nd7 14.f4 {led to a clear advantage for White in Pantzar-Fedoseev, Titled Tuesday 2020. After the exchange of dark-squared bishops, Black's king is very unsafe.} ) 11.Rb1 {Threatening 12.Rb5, winning a pawn.} 11...Nd7 12.Qd2 $6 {[%c_effect d2;square;d2;type;Inaccuracy;persistent;true] A new move. I don't like it because now Black can exchange queens, which brings some relief to her position.} ( 12.Rb5 {was played in a correspondence game in which White eventually won.} 12...Qd8 13.Qd2 b6 14.Rbb1 Bb7 15.e5 e6 16.f3 Qc7 17.Bd3 a6 18.h4 $1 {[%c_effect h4;square;h4;type;GreatFind;persistent;true] with the idea of playing h4-h5 with strong pressure in Molzahn-Hempel ICCF email 2018.} ) 12...a6 $6 {[%c_effect a6;square;a6;type;Inaccuracy;persistent;true]} ( 12...cxd4 $1 {[%c_effect d4;square;d4;type;GreatFind;persistent;true] Black should have seized the chance to exchange queens.} 13.cxd4 Qxd2 14.Bxd2 Nb6 {Black has good chances of equalizing.} ) 13.Qe3 $1 {[%c_effect e3;square;e3;type;GreatFind;persistent;true] It's difficult for Black to complete the development, and her pieces are not well coordinated.} 13...Nb6 ( 13...e5 {leads to a winning attack for White after} 14.Bxe5 Nxe5 15.dxe5 Bxe5 16.f4 Bg7 17.f5 $1 {[%c_effect f5;square;f5;type;GreatFind;persistent;true]} ) ( 13...cxd4 14.cxd4 e5 15.dxe5 Nxe5 16.Bd5 {is also much better for White.} ) ( 13...Re8 {Maybe this is the best move, but it's clear that the position is bad.} ) 14.Bb3 ( 14.Bc7 $2 {[%c_effect c7;square;c7;type;Mistake;persistent;true] is bad:} 14...Nxc4 $1 {[%c_effect c4;square;c4;type;GreatFind;persistent;true]} ) ( 14.Bxf7+ {This move wins a pawn, but of course, White doesn't want to exchange queens.} 14...Rxf7 15.Bc7 Nc4 16.Bxa5 Nxe3 17.fxe3 b5 ) 14...c4 {The justification of the previous move, but surrendering the center is not positionally desirable.} 15.Bc2 Nd7 ( 15...Qxa2 16.Qd2 Nd7 17.Ra1 Qb2 18.Rfb1 {loses the queen.} ) 16.Bh6 $1 {[%c_effect h6;square;h6;type;GreatFind;persistent;true] White has many tempting continuations, but I like the move played in the game because it has a clear idea and makes it easier to play. Assaubayeva wants to exchange bishops and play f4-f5 with a mating attack.} ( 16.e5 Nb6 ( 16...Qxa2 17.Be4 ) 17.Be4 Nd5 18.Bxd5 Qxd5 19.Bh6 {with the idea of playing Nf4 and advancing the d-pawn, with a clear advantage.} ) ( 16.a4 e5 17.Bg3 {Followed by f2-f4, with strong pressure.} ) 16...Qxa2 17.Bxg7 Kxg7 18.Rbc1 $1 {[%c_effect c1;square;c1;type;GreatFind;persistent;true] Simple and effective. Black is underdeveloped, and the queen is out of play.} 18...b5 19.f4 $1 {[%c_effect f4;square;f4;type;GreatFind;persistent;true] The attack on the dark squares is decisive.} 19...Rb8 20.f5 b4 {A desperate attempt to get some counterplay.} 21.cxb4 Qb2 22.e5 Bb7 {There are many winning moves for White now.} 23.Ba4 {A nice move, attacking the knight and trapping the queen.} ( 23.Nf4 {brings the knight to the attack.} ) ( 23.Rf4 {brings the rook to the attack, as Rh4 is coming.} ) ( 23.Rf2 {Prepares to double rooks on the f-file.} ) ( 23.h4 {Prepares h5, breaking the king's protection.} ) 23...Nb6 24.Rb1 $1 {[%c_effect b1;square;b1;type;GreatFind;persistent;true]} 24...Qa2 25.Ra1 Qb2 26.Rfb1 {Black has no compensation for the queen, and the attack continues.} 26...c3 27.Rxb2 cxb2 28.Rb1 Nxa4 29.Nc3 Nxc3 30.f6+ $1 {[%c_effect f6;square;f6;type;GreatFind;persistent;true]} 30...exf6 31.exf6+ Kh8 ( 31...Kxf6 32.Qe5# ) 32.Qxc3 Rbc8 33.Qxb2 {The rest is simple.} 33...Rc6 34.Rc1 Rd6 ( 34...Rxf6 35.d5 Kg7 36.Rf1 {wins the rook.} ) 35.Qf2 g5 36.Rc7 Be4 37.Qg3 Rdd8 38.Re7 Bg6 39.Qxg5 Rg8 40.Qh6 Rd6 ( 40...Rxd4 41.Re8 $1 {[%c_effect e8;square;e8;type;GreatFind;persistent;true]} 41...Rxe8 42.Qg7# ) 41.Qf4 Rb6 42.d5 1-0